[Event "*** Titled Tuesday Blitz"]
[Site "Chess.com"]
[Date "2020.02.04"]
[Round "4"]
[White "obliviate12"]
[Black "Lubov_Gordyk"]
[Result "1/2-1/2"]
[WhiteElo "2869"]
[BlackElo "2631"]
[TimeControl "180+2"]
[EndTime "9:58:01 PST"]
[Termination "Game drawn by 50-move rule"]

1. e4 {[%clk 0:02:59.9]} 1... g6 {[%clk 0:03:00.7]} 2. d4 {[%clk 0:03:00.7]}
2... Bg7 {[%clk 0:03:02.1]} 3. Nc3 {[%clk 0:03:02.1]} 3... d6 {[%clk 0:03:03.2]}
4. Be3 {[%clk 0:03:02.9]} 4... a6 {[%clk 0:03:04.2]} 5. Nf3 {[%clk 0:03:03.6]}
5... b5 {[%clk 0:03:05.1]} 6. Qd2 {[%clk 0:03:04.2]} 6... Nd7 {[%clk 0:03:06]}
7. h4 {[%clk 0:03:03.3]} 7... h5 {[%clk 0:03:06.2]} 8. Ng5 {[%clk 0:03:03]} 8...
Ngf6 {[%clk 0:03:01.2]} 9. f3 {[%clk 0:03:03.8]} 9... Bb7 {[%clk 0:03:00.3]} 10.
O-O-O {[%clk 0:03:01.1]} 10... e6 {[%clk 0:02:54.3]} 11. Kb1 {[%clk 0:02:48.3]}
11... Qe7 {[%clk 0:02:54.5]} 12. Qf2 {[%clk 0:02:32.2]} 12... O-O {[%clk
0:02:45.1]} 13. Ne2 {[%clk 0:02:06.1]} 13... Rfd8 {[%clk 0:02:44.1]} 14. Nf4
{[%clk 0:01:53.9]} 14... e5 {[%clk 0:02:40.3]} 15. dxe5 {[%clk 0:01:44.8]} 15...
dxe5 {[%clk 0:02:38.2]} 16. Nfh3 {[%clk 0:01:37]} 16... c5 {[%clk 0:02:26.8]}
17. Be2 {[%clk 0:01:37.6]} 17... Rac8 {[%clk 0:02:25.9]} 18. Rd2 {[%clk
0:01:38.4]} 18... c4 {[%clk 0:02:16]} 19. c3 {[%clk 0:01:36.4]} 19... Nf8 {[%clk
0:02:05.3]} 20. Rhd1 {[%clk 0:01:24]} 20... Rxd2 {[%clk 0:02:05.6]} 21. Rxd2
{[%clk 0:01:25.9]} 21... Rd8 {[%clk 0:02:03.6]} 22. Bc5 {[%clk 0:01:21.6]} 22...
Qe8 {[%clk 0:02:00.8]} 23. Bf1 {[%clk 0:01:19.7]} 23... N6d7 {[%clk 0:01:49.9]}
24. Bd6 {[%clk 0:00:41.7]} 24... f6 {[%clk 0:01:32.6]} 25. Qa7 {[%clk 0:00:42]}
25... Bc8 {[%clk 0:01:25.2]} 26. Bc7 {[%clk 0:00:37.5]} 26... fxg5 {[%clk
0:01:23.9]} 27. Nxg5 {[%clk 0:00:39.4]} 27... Qe7 {[%clk 0:01:11.7]} 28. Bxd8
{[%clk 0:00:31.4]} 28... Qxd8 {[%clk 0:01:12.7]} 29. a4 {[%clk 0:00:32.1]} 29...
Qb6 {[%clk 0:00:55.4]} 30. Qa8 {[%clk 0:00:29]} 30... Qb7 {[%clk 0:00:48.2]} 31.
Qxb7 {[%clk 0:00:26.4]} 31... Bxb7 {[%clk 0:00:49.6]} 32. Rd6 {[%clk 0:00:20.6]}
32... Bf6 {[%clk 0:00:38.3]} 33. axb5 {[%clk 0:00:19.5]} 33... axb5 {[%clk
0:00:38.4]} 34. b3 {[%clk 0:00:15]} 34... Be7 {[%clk 0:00:31.7]} 35. Rd2 {[%clk
0:00:15.8]} 35... Nb6 {[%clk 0:00:31.2]} 36. bxc4 {[%clk 0:00:11.1]} 36... Nxc4
{[%clk 0:00:32.1]} 37. Ra2 {[%clk 0:00:12.2]} 37... Bxg5 {[%clk 0:00:29.9]} 38.
hxg5 {[%clk 0:00:12.2]} 38... Ne6 {[%clk 0:00:30.1]} 39. Ra7 {[%clk 0:00:11.6]}
39... Bc6 {[%clk 0:00:31]} 40. Bxc4 {[%clk 0:00:10.6]} 40... bxc4 {[%clk
0:00:31.5]} 41. Ra6 {[%clk 0:00:12.5]} 41... Nd8 {[%clk 0:00:29.2]} 42. Kb2
{[%clk 0:00:11.9]} 42... Kf7 {[%clk 0:00:30.1]} 43. Ka3 {[%clk 0:00:11.7]} 43...
Bd7 {[%clk 0:00:25.2]} 44. Kb4 {[%clk 0:00:12.1]} 44... Ne6 {[%clk 0:00:25.1]}
45. Ra7 {[%clk 0:00:10.8]} 45... Ke7 {[%clk 0:00:25.7]} 46. Kxc4 {[%clk
0:00:12.3]} 46... Nf4 {[%clk 0:00:26.7]} 47. g3 {[%clk 0:00:12.8]} 47... Ne2
{[%clk 0:00:26.9]} 48. Kd5 {[%clk 0:00:14.1]} 48... Nxg3 {[%clk 0:00:25.9]} 49.
Kxe5 {[%clk 0:00:15.5]} 49... h4 {[%clk 0:00:27.3]} 50. f4 {[%clk 0:00:14.6]}
50... h3 {[%clk 0:00:28]} 51. Ra2 {[%clk 0:00:16.5]} 51... Bg4 {[%clk
0:00:21.4]} 52. Ra7+ {[%clk 0:00:15.7]} 52... Kd8 {[%clk 0:00:20.9]} 53. Rh7
{[%clk 0:00:16.9]} 53... Nh5 {[%clk 0:00:21.7]} 54. Ra7 {[%clk 0:00:16.1]} 54...
h2 {[%clk 0:00:21.9]} 55. Ra1 {[%clk 0:00:18]} 55... Bf3 {[%clk 0:00:22.5]} 56.
f5 {[%clk 0:00:17.5]} 56... gxf5 {[%clk 0:00:21.6]} 57. exf5 {[%clk 0:00:19.4]}
57... h1=Q {[%clk 0:00:22.9]} 58. Rxh1 {[%clk 0:00:20.8]} 58... Bxh1 {[%clk
0:00:24.6]} 59. g6 {[%clk 0:00:20.3]} 59... Ke7 {[%clk 0:00:25]} 60. c4 {[%clk
0:00:18.7]} 60... Bg2 {[%clk 0:00:24.9]} 61. c5 {[%clk 0:00:19.5]} 61... Nf6
{[%clk 0:00:25.3]} 62. Kf4 {[%clk 0:00:19.2]} 62... Nd7 {[%clk 0:00:24.8]} 63.
Kg5 {[%clk 0:00:20]} 63... Nxc5 {[%clk 0:00:22.8]} 64. Kh6 {[%clk 0:00:13.1]}
64... Nd7 {[%clk 0:00:22.2]} 65. Kg7 {[%clk 0:00:04.4]} 65... Nf6 {[%clk
0:00:21.7]} 66. Kh8 {[%clk 0:00:05.8]} 66... Bd5 {[%clk 0:00:21.6]} 67. Kg7
{[%clk 0:00:05.8]} 67... Be4 {[%clk 0:00:21.7]} 68. Kh8 {[%clk 0:00:06.6]} 68...
Bxf5 {[%clk 0:00:22.8]} 69. g7 {[%clk 0:00:08.5]} 69... Be6 {[%clk 0:00:23.2]}
70. g8=Q {[%clk 0:00:10.4]} 70... Bxg8 {[%clk 0:00:24]} 71. Kg7 {[%clk
0:00:12.3]} 71... Bf7 {[%clk 0:00:24.1]} 72. Kh6 {[%clk 0:00:14.2]} 72... Kf8
{[%clk 0:00:24]} 73. Kg5 {[%clk 0:00:16.1]} 73... Kg7 {[%clk 0:00:25.4]} 74. Kf5
{[%clk 0:00:18]} 74... Be8 {[%clk 0:00:25.8]} 75. Ke6 {[%clk 0:00:17.3]} 75...
Kg6 {[%clk 0:00:26.2]} 76. Ke5 {[%clk 0:00:18.4]} 76... Bd7 {[%clk 0:00:26.7]}
77. Kd4 {[%clk 0:00:19]} 77... Kf7 {[%clk 0:00:26.1]} 78. Ke5 {[%clk 0:00:20.2]}
78... Ke7 {[%clk 0:00:27]} 79. Kd4 {[%clk 0:00:20.8]} 79... Kd6 {[%clk
0:00:27.5]} 80. Kc4 {[%clk 0:00:22.1]} 80... Nd5 {[%clk 0:00:27.5]} 81. Kd4
{[%clk 0:00:24]} 81... Bb5 {[%clk 0:00:28]} 82. Ke4 {[%clk 0:00:25.4]} 82... Bc4
{[%clk 0:00:27.7]} 83. Kd4 {[%clk 0:00:27.3]} 83... Nb6 {[%clk 0:00:28.2]} 84.
Ke4 {[%clk 0:00:23.6]} 84... Be6 {[%clk 0:00:29]} 85. Kd4 {[%clk 0:00:24.7]}
85... Bf5 {[%clk 0:00:28.9]} 86. Kc3 {[%clk 0:00:25.4]} 86... Kc5 {[%clk
0:00:29.9]} 87. Kb3 {[%clk 0:00:22.4]} 87... Be4 {[%clk 0:00:28]} 88. Kc3 {[%clk
0:00:22.9]} 88... Bd5 {[%clk 0:00:28.6]} 89. Kd3 {[%clk 0:00:18.7]} 89... Kd6
{[%clk 0:00:27.7]} 90. Kd4 {[%clk 0:00:19.9]} 90... Na4 {[%clk 0:00:27.3]} 91.
Kd3 {[%clk 0:00:21]} 91... Ke5 {[%clk 0:00:27.7]} 92. Kc2 {[%clk 0:00:19.9]}
92... Bc4 {[%clk 0:00:27]} 93. Kd2 {[%clk 0:00:19]} 93... Kd4 {[%clk 0:00:17.5]}
94. Kc2 {[%clk 0:00:20.8]} 94... Ba2 {[%clk 0:00:16.5]} 95. Kd2 {[%clk
0:00:14.5]} 95... Bb3 {[%clk 0:00:16.7]} 96. Ke2 {[%clk 0:00:13.2]} 96... Ke4
{[%clk 0:00:15.8]} 97. Kd2 {[%clk 0:00:14]} 97... Bc4 {[%clk 0:00:16.4]} 98. Kc2
{[%clk 0:00:14.8]} 98... Kd4 {[%clk 0:00:17.5]} 99. Kb1 {[%clk 0:00:08.8]} 99...
Kc3 {[%clk 0:00:17.5]} 100. Ka1 {[%clk 0:00:10.2]} 100... Bb3 {[%clk 0:00:18]}
101. Kb1 {[%clk 0:00:11.5]} 101... Nb6 {[%clk 0:00:18.6]} 102. Ka1 {[%clk
0:00:11.8]} 102... Nc4 {[%clk 0:00:19.6]} 103. Kb1 {[%clk 0:00:13.7]} 103...
Na3+ {[%clk 0:00:19.9]} 104. Ka1 {[%clk 0:00:15.2]} 104... Nc2+ {[%clk
0:00:20.7]} 105. Kb1 {[%clk 0:00:16.8]} 105... Bc4 {[%clk 0:00:21.5]} 106. Kc1
{[%clk 0:00:18.7]} 106... Na3 {[%clk 0:00:22.6]} 107. Kd1 {[%clk 0:00:19]}
107... Bd3 {[%clk 0:00:22.1]} 108. Kc1 {[%clk 0:00:20]} 108... Nc4 {[%clk
0:00:21.5]} 109. Kd1 {[%clk 0:00:20.7]} 109... Kd4 {[%clk 0:00:21.1]} 110. Kc1
{[%clk 0:00:21.4]} 110... Ke3 {[%clk 0:00:22]} 111. Kd1 {[%clk 0:00:22.4]}
111... Nd2 {[%clk 0:00:20]} 112. Kc1 {[%clk 0:00:24.3]} 112... Nc4 {[%clk
0:00:20.8]} 113. Kd1 {[%clk 0:00:25.8]} 113... Be4 {[%clk 0:00:21.3]} 114. Kc1
{[%clk 0:00:27]} 114... Kd3 {[%clk 0:00:21.8]} 115. Kb1 {[%clk 0:00:27.4]}
115... Kc3+ {[%clk 0:00:22.4]} 116. Ka2 {[%clk 0:00:29.3]} 116... Bd5 {[%clk
0:00:23]} 117. Ka1 {[%clk 0:00:30.3]} 117... Kb3 {[%clk 0:00:23.9]} 118. Kb1
{[%clk 0:00:30.7]} 118... Na3+ {[%clk 0:00:24.7]} 119. Ka1 {[%clk 0:00:31.7]}
119... Nc2+ {[%clk 0:00:25.3]} 120. Kb1 {[%clk 0:00:32.8]} 120... Kc3 {[%clk
0:00:26.2]} 1/2-1/2

[Event "*** Titled Tuesday Blitz"]
[Site "Chess.com"]
[Date "2020.02.04"]
[Round "5"]
[White "Coiote53"]
[Black "Raspadsistema"]
[Result "0-1"]
[WhiteElo "2611"]
[BlackElo "2816"]
[TimeControl "180+2"]
[EndTime "10:00:11 PST"]
[Termination "Raspadsistema won by resignation"]

1. e4 {[%clk 0:03:01.9]} 1... d6 {[%clk 0:03:01.9]} 2. d4 {[%clk 0:03:02.2]}
2... Nf6 {[%clk 0:03:03.6]} 3. Nc3 {[%clk 0:03:01.6]} 3... e5 {[%clk 0:03:05.1]}
4. Nf3 {[%clk 0:02:53.8]} 4... Nbd7 {[%clk 0:03:06.3]} 5. Bc4 {[%clk 0:02:51]}
5... Be7 {[%clk 0:03:07.5]} 6. a4 {[%clk 0:02:50.9]} 6... O-O {[%clk 0:03:08.8]}
7. O-O {[%clk 0:02:48.3]} 7... c6 {[%clk 0:03:10.4]} 8. a5 {[%clk 0:02:48.4]}
8... h6 {[%clk 0:03:09.4]} 9. h3 {[%clk 0:02:47.4]} 9... Re8 {[%clk 0:03:10.8]}
10. Re1 {[%clk 0:02:44.6]} 10... Qc7 {[%clk 0:03:12.2]} 11. Be3 {[%clk
0:02:38.7]} 11... exd4 {[%clk 0:03:13.3]} 12. Nxd4 {[%clk 0:02:37.7]} 12... Bf8
{[%clk 0:03:14.2]} 13. Bb3 {[%clk 0:02:36.6]} 13... Nxe4 {[%clk 0:03:12.6]} 14.
Nxe4 {[%clk 0:02:35.4]} 14... Rxe4 {[%clk 0:03:14.5]} 15. Bxf7+ {[%clk
0:02:35.8]} 15... Kxf7 {[%clk 0:03:16.4]} 0-1

[Event "*** Titled Tuesday Blitz"]
[Site "Chess.com"]
[Date "2020.02.04"]
[Round "5"]
[White "czasnaszachy"]
[Black "Haykoooo0o"]
[Result "0-1"]
[WhiteElo "2301"]
[BlackElo "2518"]
[TimeControl "180+2"]
[EndTime "10:01:30 PST"]
[Termination "Haykoooo0o won by resignation"]

1. d4 {[%clk 0:03:01.9]} 1... Nf6 {[%clk 0:03:00.7]} 2. c4 {[%clk 0:03:02.6]}
2... c5 {[%clk 0:03:00.7]} 3. d5 {[%clk 0:03:03]} 3... b5 {[%clk 0:03:01.8]} 4.
Qc2 {[%clk 0:03:03.8]} 4... bxc4 {[%clk 0:03:00.4]} 5. e3 {[%clk 0:03:04.9]}
5... e6 {[%clk 0:03:01]} 6. dxe6 {[%clk 0:03:05.1]} 6... fxe6 {[%clk 0:03:02.2]}
7. Bxc4 {[%clk 0:03:06.5]} 7... d5 {[%clk 0:03:02.5]} 8. Bb5+ {[%clk 0:03:07.2]}
8... Bd7 {[%clk 0:03:04]} 9. Bxd7+ {[%clk 0:03:08.1]} 9... Nbxd7 {[%clk
0:03:05.5]} 10. Nf3 {[%clk 0:03:09.5]} 10... Bd6 {[%clk 0:03:06.8]} 11. O-O
{[%clk 0:03:10.5]} 11... O-O {[%clk 0:03:08.3]} 12. b3 {[%clk 0:03:11.6]} 12...
Ne5 {[%clk 0:03:03.3]} 13. Nbd2 {[%clk 0:03:10.9]} 13... Nfg4 {[%clk 0:03:03.4]}
14. h3 {[%clk 0:03:10.4]} 14... Nxf3+ {[%clk 0:03:04.2]} 15. Nxf3 {[%clk
0:03:11.3]} 15... Rxf3 {[%clk 0:03:00.1]} 16. hxg4 {[%clk 0:02:36.8]} 16... Qh4
{[%clk 0:02:59]} 17. Rd1 {[%clk 0:02:31.5]} 17... Qh2+ {[%clk 0:02:54.3]} 18.
Kf1 {[%clk 0:02:32.6]} 18... Qh1+ {[%clk 0:02:55.2]} 19. Ke2 {[%clk 0:02:33.6]}
19... Qxg2 {[%clk 0:02:56.9]} 20. Rf1 {[%clk 0:02:33]} 20... Raf8 {[%clk
0:02:54.3]} 21. Ke1 {[%clk 0:02:30.7]} 21... Bg3 {[%clk 0:02:53.1]} 22. Qe2
{[%clk 0:02:12.2]} 22... Rxf2 {[%clk 0:02:50.2]} 0-1

[Event "*** Titled Tuesday Blitz"]
[Site "Chess.com"]
[Date "2020.02.04"]
[Round "5"]
[White "tarantul1"]
[Black "Abund"]
[Result "0-1"]
[WhiteElo "2604"]
[BlackElo "2759"]
[TimeControl "180+2"]
[EndTime "10:03:30 PST"]
[Termination "Abund won by resignation"]

1. e4 {[%clk 0:03:00.2]} 1... c5 {[%clk 0:02:59.6]} 2. Nf3 {[%clk 0:03:00.6]}
2... Nc6 {[%clk 0:03:00.7]} 3. d4 {[%clk 0:03:02.2]} 3... cxd4 {[%clk
0:03:02.6]} 4. Nxd4 {[%clk 0:03:04.1]} 4... Nf6 {[%clk 0:03:03.9]} 5. Nc3 {[%clk
0:03:05.4]} 5... e5 {[%clk 0:03:04.6]} 6. Nde2 {[%clk 0:03:04.6]} 6... Bc5
{[%clk 0:03:03]} 7. Ng3 {[%clk 0:03:02.5]} 7... Bb4 {[%clk 0:03:04.3]} 8. Qd3
{[%clk 0:02:55.5]} 8... d5 {[%clk 0:03:00.8]} 9. Bd2 {[%clk 0:02:30.4]} 9... d4
{[%clk 0:02:41.5]} 10. Nd1 {[%clk 0:02:23.6]} 10... O-O {[%clk 0:02:24.1]} 11.
Be2 {[%clk 0:02:20.3]} 11... Qa5 {[%clk 0:02:22]} 12. a3 {[%clk 0:02:12.3]}
12... Be6 {[%clk 0:02:08.1]} 13. axb4 {[%clk 0:01:36.5]} 13... Qxa1 {[%clk
0:02:06.9]} 14. O-O {[%clk 0:01:38.1]} 14... Qa4 {[%clk 0:01:51.9]} 15. Qb5
{[%clk 0:00:42.3]} 15... Qxc2 {[%clk 0:01:46.7]} 0-1

[Event "*** Titled Tuesday Blitz"]
[Site "Chess.com"]
[Date "2020.02.04"]
[Round "5"]
[White "Zarikovs1999"]
[Black "SergioGarciaFuentes"]
[Result "1-0"]
[WhiteElo "2353"]
[BlackElo "2163"]
[TimeControl "180+2"]
[EndTime "10:03:57 PST"]
[Termination "Zarikovs1999 won by resignation"]

1. c4 {[%clk 0:03:00]} 1... c6 {[%clk 0:02:57.6]} 2. Nf3 {[%clk 0:02:55.1]} 2...
d5 {[%clk 0:02:55.6]} 3. e3 {[%clk 0:02:56.3]} 3... Nf6 {[%clk 0:02:54.2]} 4. b3
{[%clk 0:02:57.5]} 4... g6 {[%clk 0:02:54.1]} 5. Bb2 {[%clk 0:02:57.9]} 5... Bg7
{[%clk 0:02:55.6]} 6. Nc3 {[%clk 0:02:59.8]} 6... O-O {[%clk 0:02:51.6]} 7. d4
{[%clk 0:02:58.5]} 7... Bf5 {[%clk 0:02:24.7]} 8. Bd3 {[%clk 0:02:48.4]} 8...
Bxd3 {[%clk 0:02:20.7]} 9. Qxd3 {[%clk 0:02:39.5]} 9... c5 {[%clk 0:01:54.3]}
10. dxc5 {[%clk 0:02:34.3]} 10... dxc4 {[%clk 0:01:52.3]} 11. Qxc4 {[%clk
0:02:31.8]} 11... Nc6 {[%clk 0:01:49.9]} 12. O-O {[%clk 0:02:27.9]} 12... Rc8
{[%clk 0:01:51.4]} 13. Rad1 {[%clk 0:02:25.6]} 13... Qa5 {[%clk 0:01:49.9]} 14.
a3 {[%clk 0:02:23.1]} 14... Rfd8 {[%clk 0:01:02.2]} 15. b4 {[%clk 0:02:22.2]}
15... Qc7 {[%clk 0:01:03]} 16. h3 {[%clk 0:02:16.7]} 16... b6 {[%clk 0:00:53.2]}
17. cxb6 {[%clk 0:02:02.8]} 17... Qxb6 {[%clk 0:00:52.6]} 18. Qb3 {[%clk
0:02:00.1]} 18... e6 {[%clk 0:00:42.4]} 19. Na4 {[%clk 0:01:59]} 19... Qb8
{[%clk 0:00:42]} 20. Nc5 {[%clk 0:01:58.3]} 20... Rxd1 {[%clk 0:00:41.4]} 21.
Rxd1 {[%clk 0:01:58.2]} 21... Na5 {[%clk 0:00:37.3]} 22. bxa5 {[%clk 0:01:55.3]}
1-0

[Event "*** Titled Tuesday Blitz"]
[Site "Chess.com"]
[Date "2020.02.04"]
[Round "5"]
[White "Manukyan_Artak"]
[Black "HarryCun"]
[Result "1/2-1/2"]
[WhiteElo "2326"]
[BlackElo "2123"]
[TimeControl "180+2"]
[EndTime "10:04:27 PST"]
[Termination "Game drawn by repetition"]

1. d4 {[%clk 0:03:01.9]} 1... c6 {[%clk 0:03:01.2]} 2. e4 {[%clk 0:03:02.2]}
2... d5 {[%clk 0:03:02]} 3. e5 {[%clk 0:03:02.2]} 3... Bf5 {[%clk 0:03:02]} 4.
c4 {[%clk 0:03:03.4]} 4... e6 {[%clk 0:03:00.9]} 5. Nc3 {[%clk 0:03:02.6]} 5...
Nd7 {[%clk 0:03:00.3]} 6. Nf3 {[%clk 0:03:01.5]} 6... Ne7 {[%clk 0:03:00.3]} 7.
Nh4 {[%clk 0:03:01.8]} 7... Bg6 {[%clk 0:03:00.9]} 8. Bg5 {[%clk 0:02:49.3]}
8... dxc4 {[%clk 0:02:59.3]} 9. Bxc4 {[%clk 0:02:49.3]} 9... Qb6 {[%clk
0:02:57.6]} 10. Bb3 {[%clk 0:02:45.8]} 10... Nd5 {[%clk 0:02:55.1]} 11. Nxg6
{[%clk 0:02:44.9]} 11... hxg6 {[%clk 0:02:55.2]} 12. O-O {[%clk 0:02:45.5]}
12... Be7 {[%clk 0:02:55.4]} 13. Nxd5 {[%clk 0:02:42.6]} 13... cxd5 {[%clk
0:02:52.8]} 14. Bxe7 {[%clk 0:02:43.5]} 14... Kxe7 {[%clk 0:02:53]} 15. Qd2
{[%clk 0:02:39.7]} 15... Rhc8 {[%clk 0:02:50.9]} 16. Rfd1 {[%clk 0:02:35.9]}
16... Kf8 {[%clk 0:02:48.4]} 17. Qg5 {[%clk 0:02:32]} 17... Qd8 {[%clk
0:02:45.5]} 18. Qg4 {[%clk 0:02:30.5]} 18... Nb6 {[%clk 0:02:41.1]} 19. Rac1
{[%clk 0:02:28.3]} 19... Nc4 {[%clk 0:02:37.1]} 20. Qe2 {[%clk 0:02:27.4]} 20...
b5 {[%clk 0:02:36.3]} 21. g3 {[%clk 0:02:28.4]} 21... a6 {[%clk 0:02:33.4]} 22.
h4 {[%clk 0:02:28.2]} 22... Na5 {[%clk 0:02:26.5]} 23. Bc2 {[%clk 0:02:23.4]}
23... Nc4 {[%clk 0:02:27.2]} 24. Bd3 {[%clk 0:02:16.5]} 24... Nb6 {[%clk
0:02:26.8]} 25. Kg2 {[%clk 0:02:14.5]} 25... Rxc1 {[%clk 0:02:26.4]} 26. Rxc1
{[%clk 0:02:15.2]} 26... Rc8 {[%clk 0:02:26.6]} 27. Rh1 {[%clk 0:02:15]} 27...
Kg8 {[%clk 0:02:03.1]} 28. h5 {[%clk 0:02:15.4]} 28... g5 {[%clk 0:02:03.8]} 29.
h6 {[%clk 0:02:16]} 29... g6 {[%clk 0:02:05]} 30. h7+ {[%clk 0:02:15.6]} 30...
Kh8 {[%clk 0:02:05.9]} 31. Qf3 {[%clk 0:02:15.2]} 31... Qe7 {[%clk 0:02:04.5]}
32. Qe3 {[%clk 0:01:54.2]} 32... Kg7 {[%clk 0:01:57.4]} 33. Qd2 {[%clk 0:01:52]}
33... Rh8 {[%clk 0:01:54.9]} 34. Qa5 {[%clk 0:01:52.2]} 34... Qb7 {[%clk
0:01:47]} 35. Qd2 {[%clk 0:01:51.9]} 35... Qe7 {[%clk 0:01:32.8]} 36. Qa5 {[%clk
0:01:49]} 36... Qb7 {[%clk 0:01:32.4]} 37. Qd2 {[%clk 0:01:37.4]} 37... Qe7
{[%clk 0:01:32.2]} 1/2-1/2

[Event "*** Titled Tuesday Blitz"]
[Site "Chess.com"]
[Date "2020.02.04"]
[Round "5"]
[White "MisiekZielony"]
[Black "saraswathii"]
[Result "1-0"]
[WhiteElo "2341"]
[BlackElo "2158"]
[TimeControl "180+2"]
[EndTime "10:04:30 PST"]
[Termination "MisiekZielony won by resignation"]

1. c4 {[%clk 0:03:01.9]} 1... Nc6 {[%clk 0:02:59.7]} 2. Nc3 {[%clk 0:03:03.3]}
2... e5 {[%clk 0:02:58.6]} 3. g3 {[%clk 0:03:04.7]} 3... Nf6 {[%clk 0:02:59.5]}
4. Bg2 {[%clk 0:03:05.6]} 4... Bc5 {[%clk 0:03:00]} 5. e3 {[%clk 0:03:06.1]}
5... d6 {[%clk 0:03:01]} 6. Nge2 {[%clk 0:03:06.9]} 6... O-O {[%clk 0:03:01.8]}
7. O-O {[%clk 0:03:07.9]} 7... Bg4 {[%clk 0:02:59.3]} 8. h3 {[%clk 0:03:07.9]}
8... Bh5 {[%clk 0:02:59.6]} 9. d3 {[%clk 0:02:58]} 9... Qd7 {[%clk 0:02:58.8]}
10. a3 {[%clk 0:02:56.9]} 10... a5 {[%clk 0:02:58.8]} 11. Rb1 {[%clk 0:02:57]}
11... Rfe8 {[%clk 0:02:52.9]} 12. Ne4 {[%clk 0:02:55.5]} 12... Nxe4 {[%clk
0:02:50.6]} 13. dxe4 {[%clk 0:02:55.8]} 13... Ne7 {[%clk 0:02:42.8]} 14. Qc2
{[%clk 0:02:52.2]} 14... c6 {[%clk 0:02:35.9]} 15. Nc3 {[%clk 0:02:51.4]} 15...
b5 {[%clk 0:02:33.2]} 16. cxb5 {[%clk 0:02:50.3]} 16... cxb5 {[%clk 0:02:35.1]}
17. b4 {[%clk 0:02:35.8]} 17... axb4 {[%clk 0:02:32.8]} 18. axb4 {[%clk
0:02:36.7]} 18... Bb6 {[%clk 0:02:33.7]} 19. Qd3 {[%clk 0:02:37.9]} 19... Rec8
{[%clk 0:02:26.6]} 20. Nxb5 {[%clk 0:02:37.6]} 20... Rc6 {[%clk 0:02:18.6]} 21.
Bd2 {[%clk 0:02:32.7]} 21... Ra2 {[%clk 0:02:16.2]} 22. Ra1 {[%clk 0:02:25.9]}
22... Rcc2 {[%clk 0:02:13.2]} 23. Rxa2 {[%clk 0:02:25.3]} 23... Rxa2 {[%clk
0:02:14]} 24. Nc3 {[%clk 0:02:23.5]} 24... Rb2 {[%clk 0:02:11]} 25. Rb1 {[%clk
0:02:20.1]} 25... Rxb1+ {[%clk 0:02:09]} 26. Qxb1 {[%clk 0:02:21.6]} 26... Bg6
{[%clk 0:02:07.3]} 27. Qb3 {[%clk 0:02:20.6]} 27... Kf8 {[%clk 0:02:01.5]} 28.
b5 {[%clk 0:02:19.4]} 28... Ba5 {[%clk 0:01:58.7]} 29. Nb1 {[%clk 0:02:16]}
29... Bxd2 {[%clk 0:01:55.8]} 30. Nxd2 {[%clk 0:02:16.2]} 30... Qc7 {[%clk
0:01:49.5]} 31. b6 {[%clk 0:02:12.2]} 31... Qb8 {[%clk 0:01:43.1]} 32. Nc4
{[%clk 0:02:06.2]} 32... Nc6 {[%clk 0:01:36.5]} 33. Qb5 {[%clk 0:02:02.5]} 33...
Nd8 {[%clk 0:01:28.2]} 34. Qa6 {[%clk 0:01:58.5]} 34... Ke7 {[%clk 0:01:20.8]}
35. Qa7+ {[%clk 0:01:55.9]} 35... Qb7 {[%clk 0:01:19]} 36. Na5 {[%clk
0:01:55.2]} 36... Qd7 {[%clk 0:01:19.6]} 37. b7 {[%clk 0:01:53.6]} 1-0

[Event "*** Titled Tuesday Blitz"]
[Site "Chess.com"]
[Date "2020.02.04"]
[Round "5"]
[White "RoelandPruijssers"]
[Black "Korchmar_Vasiliy"]
[Result "1/2-1/2"]
[WhiteElo "2616"]
[BlackElo "2824"]
[TimeControl "180+2"]
[EndTime "10:04:36 PST"]
[Termination "Game drawn by repetition"]

1. e4 {[%clk 0:03:01.9]} 1... c5 {[%clk 0:03:01]} 2. Nf3 {[%clk 0:03:02.3]} 2...
d6 {[%clk 0:03:02]} 3. d4 {[%clk 0:03:03.8]} 3... cxd4 {[%clk 0:03:03.4]} 4.
Nxd4 {[%clk 0:03:05.5]} 4... Nf6 {[%clk 0:03:05]} 5. Nc3 {[%clk 0:03:06.9]} 5...
Nc6 {[%clk 0:03:06.5]} 6. f3 {[%clk 0:03:06.4]} 6... e5 {[%clk 0:03:06]} 7. Nb3
{[%clk 0:03:06.7]} 7... Be7 {[%clk 0:03:06.6]} 8. Be3 {[%clk 0:03:06.1]} 8...
O-O {[%clk 0:03:06.9]} 9. Qd2 {[%clk 0:03:05.3]} 9... Be6 {[%clk 0:03:06.9]} 10.
Nd5 {[%clk 0:02:57.7]} 10... a5 {[%clk 0:03:04.2]} 11. Bb6 {[%clk 0:02:28.6]}
11... Qd7 {[%clk 0:03:05.1]} 12. Bb5 {[%clk 0:02:14.4]} 12... a4 {[%clk
0:03:05.9]} 13. Nc1 {[%clk 0:02:03.9]} 13... a3 {[%clk 0:02:56.7]} 14. b3 {[%clk
0:02:02.6]} 14... Bd8 {[%clk 0:02:50.5]} 15. Be3 {[%clk 0:01:43.2]} 15... Ba5
{[%clk 0:02:18.4]} 16. b4 {[%clk 0:01:16.3]} 16... Bxd5 {[%clk 0:02:09.8]} 17.
exd5 {[%clk 0:01:13.4]} 17... Bxb4 {[%clk 0:02:11.3]} 18. c3 {[%clk 0:01:08.8]}
18... Ba5 {[%clk 0:02:12.7]} 19. O-O {[%clk 0:00:59.8]} 19... Qc7 {[%clk
0:02:05]} 20. dxc6 {[%clk 0:01:00.3]} 20... bxc6 {[%clk 0:02:06.9]} 21. Bc4
{[%clk 0:00:55.5]} 21... d5 {[%clk 0:02:08.2]} 22. Bd3 {[%clk 0:00:46.8]} 22...
d4 {[%clk 0:02:09.5]} 23. Bg5 {[%clk 0:00:48]} 23... Bxc3 {[%clk 0:02:10.5]} 24.
Qf2 {[%clk 0:00:48.1]} 24... Bxa1 {[%clk 0:01:52.9]} 25. Bxf6 {[%clk 0:00:47.1]}
25... gxf6 {[%clk 0:01:54.8]} 26. Qg3+ {[%clk 0:00:39.1]} 26... Kh8 {[%clk
0:01:56.1]} 27. Qh4 {[%clk 0:00:40.6]} 27... f5 {[%clk 0:01:54.1]} 28. Qf6+
{[%clk 0:00:33.7]} 28... Kg8 {[%clk 0:01:54.9]} 29. Qg5+ {[%clk 0:00:27.9]}
29... Kh8 {[%clk 0:01:56.2]} 30. Qf6+ {[%clk 0:00:29.3]} 30... Kg8 {[%clk
0:01:57.6]} 31. Qg5+ {[%clk 0:00:26.4]} 31... Kh8 {[%clk 0:01:58.9]} 32. Qf6+
{[%clk 0:00:27.6]} 1/2-1/2